bitfinex/quotes_SOLUSD_20220228
["timestamp","ask_amount","ask_price","bid_price","bid_amount"]
[1646048971727,1.63050007,91.153,91.074,4.39]
[1646048971929,1.63050007,91.153,91.07,7.13678921]
[1646048972126,1.63050007,91.153,91.075,2.74678921]
[1646048975729,1.63050007,91.153,91.069,16.0595]
[1646048975930,1.63050007,91.153,91.07,2.74678921]
[1646048976837,1.63050007,91.153,91.071,4.39]
[1646048977232,1.63050007,91.153,91.072,2.74678921]
[1646048977434,1.63050007,91.153,91.073,4.39]
[1646048977833,1.63050007,91.153,91.074,2.74678921]
[1646048978932,1.63050007,91.153,91.075,4.39]
[1646048979336,1.63050007,91.153,91.076,2.74678921]
[1646048979533,110.7,91.149,91.077,4.39]
[1646048979835,110.7,91.135,91.076,2.74678921]
[1646048980033,1.37728964,91.134,91.076,2.74678921]
[1646048980232,1.37728964,91.134,91.068,44.81273162]
[1646048980432,1.37728964,91.134,91.069,6.0]
[1646048980631,1.58011801,91.131,91.069,8.74678921]
[1646048980834,1.58011801,91.131,91.07,2.74678921]
[1646048981234,1.73912422,91.125,91.07,2.74678921]
[1646048981436,1.73912422,91.125,91.069,6.0]
[1646048981633,1.73912422,91.125,91.061,6.0]
[1646048982834,1.73912422,91.125,91.06,2.74678921]
[1646048983138,1.73912422,91.125,91.062,2.74678921]
[1646048984840,110.7,91.132,91.062,2.74678921]
[1646048984841,1.64488891,91.131,91.062,2.74678921]
[1646048985238,1.64488891,91.131,91.063,52.51022094]
[1646048985438,1.64488891,91.131,91.064,4.39]
[1646048985638,1.64488891,91.131,91.063,52.51022094]
[1646048993464,1.64488891,91.131,91.04,4.39]
[1646048993465,66.45,91.123,91.04,4.39]
[1646048993667,177.15,91.106,91.04,4.39]
[1646048993864,110.7,91.104,91.04,4.39]
[1646048994066,1.71646489,91.103,91.04,4.39]
[1646048994867,66.45,91.093,91.04,4.39]
[1646048995065,177.15,91.086,91.003,16.4664]
[1646048995265,1.67965792,91.085,91.003,16.4664]
[1646048995966,1.67965792,91.085,91.004,59.67172064]
[1646048995967,1.46268053,91.083,91.004,59.67172064]
[1646048996166,110.7,91.082,91.004,59.67172064]
[1646048996365,177.15,91.076,91.004,59.67172064]
[1646048996565,1.86883466,91.075,91.004,59.67172064]
[1646048997267,110.7,91.073,91.004,59.67172064]
[1646048997468,1.74667853,91.072,91.004,59.67172064]
[1646048999267,110.7,91.065,91.004,59.67172064]
[1646049000470,1.50520696,91.071,91.004,59.67172064]
[1646049001069,23.4679,91.074,91.004,59.67172064]
[1646049001471,23.4679,91.074,91.005,26.03642571]
[1646049001668,1.75713153,91.126,91.011,2.79270685]
[1646049001868,1.83509825,91.148,91.013,110.7]
[1646049002069,110.7,91.148,91.015,110.7]
[1646049002369,1.59228872,91.145,91.031,45.9777861]
[1646049002572,1.59228872,91.145,91.04,15.82]
[1646049002970,177.15,91.136,91.041,23.13436594]
[1646049003170,1.4728744,91.135,91.041,23.13436594]
[1646049003771,110.7,91.133,91.041,23.13436594]
[1646049003972,110.7,91.133,91.041,6.0]
[1646049004174,1.80706044,91.132,91.041,6.0]
[1646049004572,110.7,91.127,91.041,6.0]
[1646049004774,1.45871565,91.114,91.031,45.9777861]
[1646049005075,1.56677572,91.111,91.031,45.9777861]
[1646049009377,177.15,91.106,91.031,45.9777861]
[1646049009578,1.376144,91.105,91.0,16.35436594]
[1646049009777,1.376144,91.105,91.002,10.0]
[1646049010280,1.376144,91.105,90.987,16.35436594]
[1646049010479,2.74678921,91.104,90.982,42.846219]
[1646049010678,177.15,91.099,90.984,10.0]
[1646049010879,178.82288796,91.097,90.984,10.0]
[1646049011178,1.63240215,91.096,90.985,6.0]
[1646049011581,2.74678921,91.095,90.985,6.0]
[1646049011780,1.56097492,91.088,90.985,6.0]
[1646049011979,1.56097492,91.088,90.983,6.0]
[1646049012679,2.74678921,91.087,90.983,6.0]
[1646049013080,112.53569786,91.085,90.983,6.0]
[1646049013280,1.70765121,91.084,90.983,6.0]
[1646049013782,110.7,91.082,90.983,6.0]
[1646049013984,1.69340432,91.081,90.983,6.0]
[1646049016987,110.7,91.08,90.983,6.0]
[1646049017190,177.15,91.066,90.983,6.0]
[1646049017389,67.98345936,91.063,90.983,6.0]
[1646049017589,177.15,91.056,90.979,6.0]
[1646049017789,1.48669046,91.055,90.979,6.0]
[1646049018390,66.45,91.048,90.95,15.05436594]
[1646049018591,66.45,91.04,90.908,2.32600906]
[1646049018790,66.45,91.034,90.91,15.82]
[1646049018990,110.7,91.021,90.908,2.32600906]
[1646049019192,1.62977233,91.014,90.908,2.32600906]
[1646049019390,110.7,91.013,90.908,2.32600906]
[1646049019597,110.7,91.013,90.953,47.99205966]
[1646049020594,1.62977233,91.014,90.953,47.99205966]
[1646049020791,1.62977233,91.014,90.908,2.32600906]
[1646049020994,66.45,91.006,90.908,18.51140906]
[1646049021292,1.6066004,91.004,90.909,6.0]
[1646049021492,1.6066004,91.004,90.909,8.73667318]
[1646049021991,134.7581,91.005,90.91,67.80254296]
[1646049022191,24.0581,91.005,90.911,2.44417322]
[1646049022493,24.0581,91.005,90.912,8.60039796]
[1646049022791,110.7,91.004,90.912,29.4827398]
[1646049022994,24.0581,91.005,90.913,3.08526036]
[1646049023196,24.0581,91.005,90.914,8.63679784]
[1646049023494,24.0581,91.005,90.914,2.63679784]
[1646049023695,24.0581,91.005,90.915,6.0]
[1646049024495,24.0581,91.005,90.915,21.40103261]
[1646049024694,24.0581,91.005,90.916,3.02664395]
[1646049024893,24.0581,91.005,90.917,6.0]
[1646049025395,24.0581,91.005,90.919,2.72563484]
[1646049025595,24.0581,91.005,90.92,6.0]
[1646049025999,24.0581,91.005,90.921,23.4827398]
[1646049026197,24.7825,91.019,90.922,8.74732132]
[1646049026396,24.7825,91.019,90.922,26.89514314]
[1646049026596,24.7825,91.019,90.923,41.81259013]
[1646049026805,24.7825,91.019,90.925,45.5656143]
[1646049027001,24.7825,91.019,90.926,8.64354921]
[1646049027203,24.7825,91.019,90.926,50.27411083]
[1646049027402,24.7825,91.019,90.941,53.17685371]
[1646049027604,24.7825,91.019,90.942,9.01233656]
[1646049027803,24.7825,91.019,90.942,6.0]
[1646049028204,24.7038,91.018,90.942,6.0]
[1646049029704,24.7038,91.018,90.942,22.1771]
[1646049030105,24.7038,91.018,90.943,2.2577212]
[1646049030506,24.7038,91.018,90.942,22.1771]
[1646049032221,24.7038,91.018,90.942,16.1771]
[1646049032423,1.75566708,91.016,90.942,16.1771]
[1646049034525,110.7,91.017,90.942,16.1771]
[1646049034526,24.7038,91.018,90.942,16.1771]
[1646049035530,24.7038,91.018,90.943,6.0]
[1646049036126,24.7038,91.018,90.943,21.40103261]
[1646049037325,177.15,91.016,90.942,16.1771]
[1646049037525,1.35565756,91.015,90.942,16.1771]
[1646049039027,24.7038,91.018,90.942,16.1771]
[1646049039226,24.7038,91.018,90.943,6.0]
[1646049039428,24.7038,91.018,90.943,29.4827398]
[1646049041434,24.7038,91.018,90.943,6.0]
[1646049042036,24.7038,91.018,90.943,29.4827398]
[1646049043038,24.7038,91.018,90.944,2.74678921]
[1646049043240,24.7038,91.018,90.945,6.0]
[1646049043437,24.7038,91.018,90.945,23.4827398]
[1646049043638,4.396,91.079,90.946,116.44211519]
[1646049043843,68.29791922,91.109,90.95,197.77]
[1646049044038,78.0101,91.149,90.947,7.23972449]
[1646049044039,1.37125626,91.107,90.973,5.0]
[1646049044243,1.37125626,91.107,90.983,5.0]
[1646049044438,1.37125626,91.107,90.985,110.7]
[1646049044639,1.37125626,91.107,90.986,2.59123118]
[1646049044839,1.37125626,91.107,91.0,15.82]
[1646049045040,47.746,91.108,91.002,52.12980234]
[1646049045244,1.66327246,91.107,91.003,2.77819918]
[1646049045440,1.66327246,91.107,91.004,6.0]
[1646049045641,1.66327246,91.107,91.004,41.28660572]
[1646049045840,1.66327246,91.107,91.005,35.16415698]
[1646049046040,112.36327246,91.107,91.006,8.61829172]
[1646049046240,1.66327246,91.107,91.021,43.18383202]
[1646049046443,1.66327246,91.107,91.022,6.0]
[1646049046641,1.66327246,91.107,91.022,8.74678921]
[1646049046843,1.66327246,91.107,91.023,18.19536429]
[1646049047041,1.66327246,91.107,91.024,6.0]
[1646049047241,1.66327246,91.107,91.024,8.74678921]
[1646049047442,47.746,91.108,91.025,18.19536429]
[1646049047644,47.746,91.108,91.03,15.82]
[1646049048042,47.746,91.108,91.031,8.74678921]
[1646049048443,47.746,91.108,91.032,20.9421535]
[1646049048643,47.746,91.108,91.033,6.0]
[1646049048843,1.56782953,91.147,91.033,26.9421535]
[1646049049047,1.56782953,91.147,91.034,2.3370853]
[1646049049245,1.80348427,91.158,91.036,110.7]
[1646049049445,1.705634,91.163,91.05,15.82]
[1646049049645,1.705634,91.163,91.06,15.82]
[1646049049847,1.705634,91.163,91.07,15.82]
[1646049050145,49.5769,91.164,91.071,47.67358983]
[1646049050345,1.68827609,91.162,91.072,6.0]
[1646049050564,1.68827609,91.162,91.072,8.74678921]
[1646049050751,49.5769,91.164,91.073,32.78086024]
[1646049050947,49.5769,91.164,91.074,6.0]
[1646049051148,1.40695846,91.163,91.074,8.74678921]
[1646049051446,49.5769,91.164,91.075,35.52764945]
[1646049051648,49.5769,91.164,91.08,15.82]
[1646049052146,49.5769,91.164,91.081,26.9421535]
[1646049052347,49.5769,91.164,91.081,59.72301374]
[1646049052546,49.5769,91.164,91.082,53.72301374]
[1646049052847,1.86554937,91.162,91.083,6.0]
[1646049053146,1.86554937,91.162,91.083,8.74678921]
[1646049053446,49.5769,91.164,91.085,52.37384968]
[1646049053648,50.99440308,91.164,91.086,6.0]
[1646049053846,49.5769,91.164,91.086,41.52764945]
[1646049054048,1.35096786,91.163,91.09,15.82]
[1646049054248,1.35096786,91.163,91.091,6.0]
[1646049054448,1.35096786,91.163,91.091,41.52764945]
[1646049054646,1.35096786,91.163,91.091,8.74678921]
[1646049054846,112.05096786,91.163,91.092,35.52764945]
[1646049055048,1.7034949,91.162,91.092,2.74678921]
[1646049055549,1.7034949,91.162,91.023,5.0]
[1646049055550,110.7,91.161,91.076,2.74678921]
[1646049055749,1.82945732,91.16,91.076,2.74678921]
[1646049055949,1.82945732,91.16,91.066,2.74678921]
[1646049056348,1.82945732,91.16,91.067,60.02973164]
[1646049056751,1.82945732,91.16,91.068,2.74678921]
[1646049057149,110.7,91.158,91.067,60.02973164]
[1646049057349,1.38366596,91.157,91.067,60.02973164]
[1646049057749,1.38366596,91.157,91.06,16.6795]
[1646049057949,110.7,91.156,91.06,16.6795]
[1646049058352,110.7,91.154,91.06,16.6795]
[1646049058551,1.596308,91.153,91.06,16.6795]
[1646049058751,110.7,91.151,91.062,46.64084974]
[1646049058952,1.38623102,91.15,91.062,46.64084974]
[1646049059154,1.38623102,91.15,91.062,49.38763895]
[1646049060555,1.38623102,91.15,91.062,2.74678921]
[1646049060754,110.7,91.149,91.062,2.74678921]
[1646049060955,1.67555298,91.148,91.062,2.74678921]
[1646049061154,110.7,91.147,91.062,2.74678921]
[1646049061357,1.52619257,91.146,91.01,15.82]
[1646049061557,4.391,91.145,91.01,51.84575122]
[1646049061755,110.7,91.129,91.01,51.84575122]
[1646049061960,112.44799604,91.127,91.01,51.84575122]
[1646049062157,110.7,91.125,91.01,51.84575122]
[1646049062358,110.7,91.109,91.01,51.84575122]
[1646049062557,110.7,91.099,91.01,51.84575122]
[1646049062757,1.37300259,91.096,91.01,51.84575122]
[1646049064564,1.37300259,91.096,91.001,16.6386]
[1646049065581,1.37300259,91.096,91.002,45.30262112]
[1646049066181,1.37300259,91.096,91.001,16.6386]
[1646049066382,1.77017216,91.094,91.001,16.6386]
[1646049066583,110.7,91.079,90.974,2.74678921]
[1646049066782,4.394,91.078,90.948,11.48166376]
[1646049066982,1.59531567,91.076,90.946,30.58764945]
[1646049067184,4.394,91.075,90.96,42.7140758]
[1646049067381,110.7,91.074,90.96,42.7140758]
[1646049067581,110.7,91.059,90.96,42.7140758]
[1646049067781,110.7,91.049,90.96,42.7140758]
[1646049067982,1.77911453,91.048,90.96,42.7140758]
[1646049068586,110.7,91.046,90.96,42.7140758]
[1646049068782,1.71943798,91.045,90.96,42.7140758]
[1646049071482,1.71943798,91.045,90.946,30.58764945]
[1646049071781,1.71943798,91.045,90.946,27.84086024]
[1646049072384,1.71943798,91.045,90.96,43.0222162]
[1646049074989,1.71943798,91.045,90.91,15.82]
[1646049075187,110.7,91.043,90.913,16.085]
[1646049075388,110.7,91.029,90.92,27.84086024]
[1646049075690,110.7,91.027,90.92,27.84086024]
[1646049075887,110.7,91.025,90.912,46.88010256]
[1646049076089,110.7,91.023,90.912,46.88010256]
[1646049076291,110.7,91.009,90.912,46.88010256]
[1646049076490,110.7,90.999,90.912,46.88010256]
[1646049076690,1.46919158,90.998,90.912,46.88010256]
[1646049076892,1.46919158,90.998,90.902,27.84086024]
[1646049077089,1.46919158,90.998,90.888,2.74678921]
[1646049077090,110.7,90.996,90.888,2.74678921]
[1646049077291,1.71922545,90.995,90.889,33.84086024]
[1646049077690,1.71922545,90.995,90.89,27.84086024]
[1646049077890,1.71922545,90.995,90.892,52.59834275]
[1646049078091,1.71922545,90.995,90.893,6.0]
[1646049078292,1.71922545,90.995,90.893,33.84086024]
[1646049078492,1.71922545,90.995,90.894,27.84086024]
[1646049078693,1.71922545,90.995,90.895,6.0]
[1646049079093,1.71922545,90.995,90.896,27.84086024]
[1646049079293,1.71922545,90.995,90.897,6.0]
[1646049079695,1.71922545,90.995,90.898,27.84086024]
[1646049079895,1.71922545,90.995,90.892,52.59834275]
[1646049080098,115.098,90.994,90.892,52.59834275]
[1646049080295,110.7,90.979,90.892,52.59834275]
[1646049080495,1.52529235,90.976,90.892,52.59834275]
[1646049080696,1.74212057,90.974,90.89,16.086]
[1646049080895,110.7,90.969,90.89,16.086]
[1646049081099,1.46052523,90.968,90.89,16.086]
[1646049081798,1.47843268,90.965,90.89,16.086]
[1646049081998,1.47843268,90.965,90.868,27.84086024]
[1646049082200,1.47843268,90.965,90.869,6.0]
[1646049082500,4.399,90.964,90.85,27.84086024]
[1646049082702,110.7,90.949,90.833,27.84086024]
[1646049082902,110.7,90.947,90.833,27.84086024]
[1646049083100,4.4,90.946,90.834,43.72604145]
[1646049083302,110.7,90.945,90.834,43.72604145]
[1646049083502,1.42127309,90.928,90.821,2.74678921]
[1646049083706,110.7,90.926,90.803,11.55583096]
[1646049084002,197.77,90.92,90.772,2.74678921]
[1646049084202,5.80349772,90.925,90.748,11.50291945]
[1646049084203,213.59,90.91,90.748,11.50291945]
[1646049084410,213.59,90.91,90.741,16.6811]
[1646049084411,1.46586948,90.908,90.757,2.74678921]
[1646049084604,1.46586948,90.908,90.758,47.3717389]
[1646049084605,110.7,90.907,90.758,47.3717389]
[1646049084803,1.58792972,90.906,90.759,3.02617696]
[1646049085005,1.79183842,90.903,90.76,21.82]
[1646049085205,1.79183842,90.903,90.761,3.029294]
[1646049085402,1.52899606,90.899,90.762,6.0]
[1646049085605,1.73322556,90.904,90.762,36.41506907]
[1646049085803,1.73322556,90.904,90.763,18.89860318]
[1646049086002,1.73322556,90.904,90.764,8.33454489]
[1646049086202,1.73322556,90.904,90.764,51.70029188]
[1646049086402,1.73322556,90.904,90.766,110.7]
[1646049086606,24.0164,90.905,90.781,110.7]
[1646049086904,24.0164,90.905,90.782,60.97556603]
[1646049087105,24.0164,90.905,90.783,3.03300272]
[1646049087304,24.0164,90.905,90.784,6.0]
[1646049087503,24.0164,90.905,90.784,21.46458338]
[1646049087706,24.0164,90.905,90.785,2.54236738]
[1646049087904,24.0164,90.905,90.786,6.0]
[1646049088104,24.0164,90.905,90.801,58.21836913]
[1646049088305,24.0164,90.905,90.802,6.0]
[1646049088504,24.0164,90.905,90.802,36.32665947]
[1646049088704,1.83450437,90.904,90.803,2.3235568]
[1646049088907,1.83450437,90.904,90.804,6.0]
[1646049089106,1.83450437,90.904,90.804,8.74678921]
[1646049089308,1.83450437,90.904,90.804,36.16743483]
[1646049089507,1.83450437,90.904,90.805,30.16743483]
[1646049089708,1.83450437,90.904,90.806,6.0]
[1646049089913,1.83450437,90.904,90.806,36.16743483]
[1646049090108,1.83450437,90.904,90.807,27.42064562]
[1646049090310,1.83450437,90.904,90.808,6.0]
[1646049090510,1.83450437,90.904,90.808,8.74678921]
[1646049090807,1.83450437,90.904,90.809,7.14878921]
[1646049091008,24.0164,90.905,90.81,6.0]
[1646049091208,24.0164,90.905,90.811,4.402]
[1646049091409,24.0164,90.905,90.812,6.0]
[1646049091608,24.0164,90.905,90.813,4.402]
[1646049091808,24.0164,90.905,90.815,58.21698677]
[1646049092210,24.0164,90.905,90.816,35.7171021]
[1646049092411,24.0164,90.905,90.816,38.46389131]
[1646049092610,24.0164,90.905,90.817,5.07999869]
[1646049092811,24.0164,90.905,90.818,6.0]
[1646049093012,24.0164,90.905,90.818,8.74678921]
[1646049093212,24.0164,90.905,90.819,4.402]
[1646049093413,24.0164,90.905,90.82,21.82]
[1646049093612,24.0164,90.905,90.821,6.79985564]
[1646049093812,24.0164,90.905,90.822,6.0]
[1646049094112,61.1233124,90.957,90.823,7.06931961]
[1646049094313,22.6066,90.956,90.825,110.7]
[1646049094514,46.347,90.956,90.841,110.7]
[1646049094816,46.347,90.956,90.852,2.38520631]
[1646049095012,46.347,90.956,90.842,55.56277347]
[1646049095013,46.347,90.956,90.862,43.25373695]
[1646049095215,24.7247,90.975,90.863,115.1]
[1646049095417,45.5455,90.992,90.872,2.89497265]
[1646049095616,45.5455,90.992,90.874,110.7]
[1646049095818,45.5455,90.992,90.876,164.47829601]
[1646049096019,45.5455,90.992,90.891,110.7]
[1646049096219,45.5455,90.992,90.894,110.7]
[1646049096416,45.5455,90.992,90.897,2.63867774]
[1646049096618,45.5455,90.992,90.911,52.14000146]
[1646049096818,45.5455,90.992,90.92,13.22]
[1646049097218,45.5455,90.992,90.921,4.397]
[1646049097419,110.7,91.017,90.922,6.0]
[1646049097619,110.7,91.017,90.923,4.397]
[1646049097820,110.7,91.017,90.925,50.34514677]
[1646049098022,66.45,91.012,90.923,2.74678921]
[1646049098219,110.7,91.005,90.923,2.74678921]
[1646049098420,110.7,91.003,90.913,2.74678921]
[1646049098619,110.7,91.003,90.914,6.0]
[1646049098821,66.45,91.002,90.914,6.0]
[1646049099019,110.7,90.995,90.914,8.74678921]
[1646049099220,1.36935704,90.994,90.914,8.74678921]
[1646049099640,1.36935704,90.994,90.914,6.0]
[1646049099844,1.36935704,90.994,90.905,6.0]
[1646049100042,110.7,90.985,90.905,6.0]
[1646049100244,112.5731545,90.995,90.914,2.74678921]
[1646049100445,1.8731545,90.995,90.914,2.74678921]
[1646049100749,1.8731545,90.995,90.915,55.54516159]
[1646049100944,49.96588832,91.004,90.915,55.54516159]
[1646049101146,48.1927,91.004,90.916,2.74678921]
[1646049101544,48.1927,91.004,90.917,10.397]
[1646049102043,48.1927,91.004,90.918,2.74678921]
[1646049102244,48.1927,91.004,90.919,6.0]
[1646049102647,110.7,91.001,90.92,2.74678921]
[1646049103649,66.45,91.0,90.92,2.74678921]
[1646049103848,110.7,90.995,90.92,2.74678921]
[1646049104048,1.62096917,90.994,90.92,2.74678921]
[1646049106353,1.62096917,90.994,90.917,4.397]
[1646049106555,112.42413425,90.992,90.917,4.397]
[1646049106754,1.55747714,90.991,90.917,4.397]
[1646049107054,66.45,90.989,90.902,2.74678921]
[1646049107254,110.7,90.98,90.892,2.74678921]
[1646049107453,110.7,90.966,90.882,2.74678921]
[1646049107654,177.15,90.956,90.882,2.74678921]
[1646049107855,110.7,90.954,90.882,2.74678921]
[1646049108054,1.58141736,90.953,90.882,2.74678921]
[1646049108455,66.45,90.947,90.882,2.74678921]
[1646049108657,1.42921064,90.945,90.882,2.74678921]
[1646049109058,1.46743683,90.953,90.882,2.74678921]
[1646049109558,177.15,90.946,90.882,2.74678921]
[1646049109758,1.87408274,90.945,90.882,2.74678921]
[1646049110764,110.7,90.954,90.882,2.74678921]
[1646049110960,48.44,90.955,90.882,2.74678921]
[1646049111461,48.44,90.955,90.883,6.0]
[1646049111860,48.44,90.955,90.884,2.74678921]
[1646049112061,48.44,90.955,90.885,6.0]
[1646049112558,48.44,90.955,90.886,2.74678921]
[1646049112762,48.44,90.955,90.887,6.0]
[1646049113260,48.44,90.955,90.888,2.74678921]
[1646049115662,48.44,90.955,90.889,6.0]
[1646049116065,48.44,90.955,90.89,2.74678921]
[1646049117163,110.7,90.954,90.89,2.74678921]
[1646049117364,1.54705523,90.953,90.87,2.74678921]
[1646049118172,177.15,90.946,90.87,2.74678921]
[1646049118365,177.15,90.946,90.842,24.86559731]
[1646049118366,1.44609629,90.945,90.853,2.74678921]
[1646049118569,1.44609629,90.945,90.854,6.0]
[1646049118965,1.44609629,90.945,90.855,2.74678921]
[1646049119165,1.44609629,90.945,90.856,6.0]
[1646049119567,1.44609629,90.945,90.857,2.74678921]
[1646049120665,110.7,90.949,90.857,2.74678921]
[1646049120867,66.45,90.944,90.857,2.74678921]
[1646049121076,110.7,90.925,90.857,2.74678921]
[1646049121272,110.7,90.923,90.857,2.74678921]
[1646049121476,1.86849522,90.922,90.857,2.74678921]
[1646049121675,66.45,90.92,90.846,2.74678921]
[1646049121875,66.45,90.916,90.846,2.74678921]
[1646049122077,66.45,90.908,90.803,24.86559731]
[1646049122275,110.7,90.905,90.804,4.402]
[1646049122474,110.7,90.905,90.805,55.82403218]
[1646049122475,1.39694105,90.904,90.805,55.82403218]
[1646049122675,1.39694105,90.904,90.805,80.68962949]
[1646049122877,1.39694105,90.904,90.806,30.86559731]
[1646049123077,1.39694105,90.904,90.807,4.402]
[1646049123278,24.3049,90.907,90.81,13.22]
[1646049123477,92.0331,90.96,90.812,2.32294905]
[1646049123681,48.5295,90.956,90.814,110.7]
[1646049123878,68.01029502,90.955,90.817,3.04780111]
[1646049124080,66.45,90.949,90.83,13.22]
[1646049124378,1.45435756,90.948,90.831,6.0]
[1646049124579,1.45435756,90.948,90.832,2.74291276]
[1646049124779,1.45435756,90.948,90.831,45.27724281]
[1646049124780,1.45435756,90.948,90.834,53.93191533]
[1646049124980,1.45435756,90.948,90.835,10.4]
[1646049125382,1.45435756,90.948,90.836,14.4116455]
[1646049125593,1.45435756,90.948,90.837,10.4]
[1646049125790,13.22,90.95,90.84,13.22]
[1646049125991,13.22,90.95,90.841,13.21907535]
[1646049126193,13.22,90.95,90.841,27.63072085]
[1646049126392,1.56494794,90.949,90.842,2.26838315]
[1646049126594,1.56494794,90.949,90.843,6.0]
[1646049126794,1.56494794,90.949,90.842,2.26838315]
[1646049127191,1.56494794,90.949,90.843,10.4]
[1646049127391,68.01494794,90.949,90.843,10.4]
[1646049127591,177.15,90.946,90.844,14.4116455]
[1646049127793,1.54275412,90.945,90.845,10.4]
[1646049127991,1.70052196,90.943,90.846,6.0]
[1646049128392,1.70052196,90.943,90.847,24.86559731]
[1646049128591,1.70052196,90.943,90.848,10.4]
[1646049128992,1.70052196,90.943,90.849,24.86559731]
[1646049129192,24.7376,90.945,90.85,10.4]
[1646049129493,24.7376,90.945,90.851,135.56559731]
[1646049129692,24.7376,90.945,90.852,13.2447514]
[1646049129894,24.7376,90.945,90.853,2.96795931]
[1646049130092,78.8131,90.96,90.856,2.56573425]
[1646049130295,78.8131,90.96,90.871,44.31097849]
[1646049130492,78.8131,90.96,90.872,6.0]
[1646049130692,78.8131,90.96,90.873,4.399]
[1646049130893,78.8131,90.96,90.874,6.0]
[1646049131092,23.1431,90.959,90.875,4.399]
[1646049131295,23.1431,90.959,90.876,6.0]
[1646049131492,23.1431,90.959,90.877,4.399]
[1646049131694,23.1431,90.959,90.878,6.0]
[1646049131892,23.1431,90.959,90.879,4.399]
[1646049132093,23.1431,90.959,90.88,6.0]
[1646049132392,1.82076612,90.981,90.881,4.399]
[1646049132594,1.82076612,90.981,90.882,6.0]
[1646049132794,1.82076612,90.981,90.883,4.398]
[1646049132993,1.82076612,90.981,90.884,6.0]
[1646049133197,1.82076612,90.981,90.885,4.398]
[1646049133398,1.82076612,90.981,90.89,13.22]
[1646049133600,1.82076612,90.981,90.891,10.398]
[1646049134000,1.73225068,90.98,90.891,10.398]
[1646049134204,24.2709,90.981,90.891,6.0]
[1646049134501,1.77688094,90.98,90.891,6.0]
[1646049134702,1.77688094,90.98,90.892,4.398]
[1646049134901,1.77688094,90.98,90.893,6.0]
[1646049135103,1.77688094,90.98,90.894,4.398]
[1646049135301,1.77688094,90.98,90.895,6.0]
[1646049135507,1.77688094,90.98,90.896,4.398]
[1646049135706,112.47688094,90.98,90.897,6.0]
[1646049135906,1.80784177,90.979,90.898,4.398]
[1646049136106,1.80784177,90.979,90.899,48.91223117]
[1646049138311,66.45,90.977,90.899,6.0]
[1646049138512,66.45,90.977,90.877,4.398]
[1646049138513,1.6835164,90.965,90.876,2.74678921]
[1646049138711,1.69394301,90.962,90.876,2.74678921]
[1646049139412,1.69394301,90.962,90.877,56.79308785]
[1646049139813,1.69394301,90.962,90.878,2.74678921]
[1646049140314,1.69394301,90.962,90.878,29.43238652]
[1646049140814,1.69394301,90.962,90.879,2.74678921]
[1646049141014,1.69394301,90.962,90.879,8.74678921]
[1646049141217,1.69394301,90.962,90.88,26.68559731]
[1646049142915,1.69394301,90.962,90.88,29.43238652]
[1646049143517,49.289,90.964,90.881,26.68559731]
[1646049143714,49.289,90.964,90.882,6.0]
[1646049143917,49.289,90.964,90.882,8.74678921]
[1646049144116,49.289,90.964,90.883,33.83138652]
[1646049144336,49.289,90.964,90.884,6.0]
[1646049144516,49.289,90.964,90.885,4.399]
[1646049144716,112.52946163,90.963,90.886,6.0]
[1646049144915,1.45816476,90.962,90.886,6.0]
[1646049145116,1.45816476,90.962,90.886,8.74678921]
[1646049145316,1.45816476,90.962,90.887,2.74678921]
[1646049145515,1.45816476,90.962,90.888,6.0]
[1646049145917,1.45816476,90.962,90.889,2.74678921]
[1646049146116,1.45816476,90.962,90.89,6.0]
[1646049146520,1.45816476,90.962,90.891,2.74678921]
[1646049146717,1.45816476,90.962,90.892,6.0]
[1646049147120,1.45816476,90.962,90.893,2.74678921]
[1646049147317,1.45816476,90.962,90.893,1.74678921]
[1646049148020,1.45816476,90.962,90.881,4.399]
[1646049148521,1.45816476,90.962,90.882,32.68559731]